[Event "*** Titled Tuesday Blitz"]
[Site "Chess.com"]
[Date "2020.05.26"]
[Round "3"]
[White "mrkvoz"]
[Black "ChessQueen"]
[Result "0-1"]
[WhiteElo "2834"]
[BlackElo "2636"]
[TimeControl "180+1"]
[EndTime "10:28:36 PDT"]
[Termination "ChessQueen won by resignation"]

1. e4 {[%clk 0:03:00.9]} 1... c6 {[%clk 0:03:00.1]} 2. Nc3 {[%clk 0:02:59.3]}
2... d5 {[%clk 0:03:00.2]} 3. d3 {[%clk 0:02:59.6]} 3... dxe4 {[%clk 0:02:52.9]}
4. Nxe4 {[%clk 0:03:00.5]} 4... Nf6 {[%clk 0:02:52.7]} 5. Qe2 {[%clk 0:02:58.8]}
5... Nxe4 {[%clk 0:02:50.3]} 6. dxe4 {[%clk 0:02:59.7]} 6... e5 {[%clk
0:02:46.4]} 7. Nf3 {[%clk 0:02:59.9]} 7... Be7 {[%clk 0:02:33]} 8. Bd2 {[%clk
0:02:59.7]} 8... Qc7 {[%clk 0:02:19.5]} 9. Bc3 {[%clk 0:02:59.1]} 9... f6 {[%clk
0:02:13.3]} 10. O-O-O {[%clk 0:02:38.8]} 10... Be6 {[%clk 0:02:11.6]} 11. Kb1
{[%clk 0:02:33.4]} 11... Nd7 {[%clk 0:02:11.2]} 12. Nh4 {[%clk 0:02:29.7]} 12...
O-O-O {[%clk 0:02:05.9]} 13. Nf5 {[%clk 0:02:29]} 13... Bxf5 {[%clk 0:01:55.3]}
14. exf5 {[%clk 0:02:29.9]} 14... Nb6 {[%clk 0:01:55.5]} 15. Bd2 {[%clk
0:02:20.5]} 15... Rd4 {[%clk 0:01:48.2]} 16. c3 {[%clk 0:02:18.9]} 16... Rd5
{[%clk 0:01:46.4]} 17. g3 {[%clk 0:02:18.5]} 17... Rhd8 {[%clk 0:01:44.3]} 18.
Bg2 {[%clk 0:02:18.7]} 18... R5d6 {[%clk 0:01:39.7]} 19. Bc1 {[%clk 0:02:16.4]}
19... Qd7 {[%clk 0:01:36.3]} 20. Rxd6 {[%clk 0:02:05.1]} 20... Qxd6 {[%clk
0:01:36.6]} 21. Be4 {[%clk 0:02:04.7]} 21... Kb8 {[%clk 0:01:31.1]} 22. Bc2
{[%clk 0:01:57.8]} 22... Qc5 {[%clk 0:01:25.1]} 23. f4 {[%clk 0:01:40.1]} 23...
Qc4 {[%clk 0:01:10.9]} 24. Qh5 {[%clk 0:01:26.1]} 24... h6 {[%clk 0:01:07.2]}
25. fxe5 {[%clk 0:01:24]} 25... fxe5 {[%clk 0:01:07.6]} 26. Re1 {[%clk
0:01:23.8]} 26... Bf6 {[%clk 0:01:00.6]} 27. Qe2 {[%clk 0:01:16.6]} 27... Qxe2
{[%clk 0:00:53]} 28. Rxe2 {[%clk 0:01:17.5]} 28... h5 {[%clk 0:00:46.7]} 29. h4
{[%clk 0:01:13.4]} 29... Nd5 {[%clk 0:00:39.2]} 30. Be4 {[%clk 0:01:10.1]} 30...
Ne7 {[%clk 0:00:33.4]} 31. Kc2 {[%clk 0:01:09]} 31... Kc7 {[%clk 0:00:33.4]} 32.
Be3 {[%clk 0:01:06.2]} 32... b6 {[%clk 0:00:33.2]} 33. a4 {[%clk 0:00:56.9]}
33... Nd5 {[%clk 0:00:32.7]} 34. Bd2 {[%clk 0:00:55]} 34... Ne7 {[%clk
0:00:32.6]} 35. Rf2 {[%clk 0:00:47.8]} 35... Rh8 {[%clk 0:00:30.6]} 36. b3
{[%clk 0:00:32]} 36... Nd5 {[%clk 0:00:28.1]} 37. c4 {[%clk 0:00:31.7]} 37...
Ne7 {[%clk 0:00:27.9]} 38. Bc3 {[%clk 0:00:32.1]} 38... c5 {[%clk 0:00:28.4]}
39. Re2 {[%clk 0:00:32.3]} 39... Kd6 {[%clk 0:00:27.2]} 40. Rd2+ {[%clk
0:00:30.6]} 40... Kc7 {[%clk 0:00:27.2]} 41. a5 {[%clk 0:00:29.9]} 41... Nc6
{[%clk 0:00:26.5]} 42. Bxc6 {[%clk 0:00:29.5]} 42... Kxc6 {[%clk 0:00:26.5]} 43.
Kd3 {[%clk 0:00:26]} 43... e4+ {[%clk 0:00:23.6]} 44. Kc2 {[%clk 0:00:26.2]}
44... Re8 {[%clk 0:00:20.9]} 45. Re2 {[%clk 0:00:25.5]} 45... Bxc3 {[%clk
0:00:18.8]} 46. Kxc3 {[%clk 0:00:25.5]} 46... Re5 {[%clk 0:00:19.7]} 47. Kd2
{[%clk 0:00:25.3]} 47... bxa5 {[%clk 0:00:17.9]} 48. Ke3 {[%clk 0:00:23.7]}
48... Rxf5 {[%clk 0:00:18.2]} 49. Kxe4 {[%clk 0:00:24.2]} 49... Rf6 {[%clk
0:00:18.5]} 50. Ra2 {[%clk 0:00:24.2]} 50... Kb6 {[%clk 0:00:18.8]} 51. Rd2
{[%clk 0:00:23.8]} 51... Rg6 {[%clk 0:00:18.8]} 52. Kf4 {[%clk 0:00:23.6]} 52...
Rg4+ {[%clk 0:00:18.5]} 53. Kf3 {[%clk 0:00:24]} 53... Rd4 {[%clk 0:00:18.3]}
54. Rxd4 {[%clk 0:00:20.6]} 54... cxd4 {[%clk 0:00:19.2]} 55. Ke4 {[%clk
0:00:21.3]} 55... Kc5 {[%clk 0:00:19.4]} 56. Kd3 {[%clk 0:00:22]} 56... g6
{[%clk 0:00:19.9]} 57. Ke4 {[%clk 0:00:22]} 57... a4 {[%clk 0:00:20.5]} 58. bxa4
{[%clk 0:00:18.4]} 58... Kxc4 {[%clk 0:00:20.7]} 59. a5 {[%clk 0:00:19]} 59...
d3 {[%clk 0:00:21.1]} 60. Ke3 {[%clk 0:00:19.4]} 60... Kc3 {[%clk 0:00:21.3]}
61. Kf4 {[%clk 0:00:20.3]} 61... d2 {[%clk 0:00:21.6]} 62. Kg5 {[%clk
0:00:21.2]} 62... d1=Q {[%clk 0:00:21.9]} 63. Kxg6 {[%clk 0:00:22.1]} 63... Qg4+
{[%clk 0:00:22]} 0-1

[Event "*** Titled Tuesday Blitz"]
[Site "Chess.com"]
[Date "2020.05.26"]
[Round "3"]
[White "ChessicallyInclined"]
[Black "12teen"]
[Result "1-0"]
[WhiteElo "2523"]
[BlackElo "2725"]
[TimeControl "180+1"]
[EndTime "10:28:38 PDT"]
[Termination "ChessicallyInclined won on time"]

1. d4 {[%clk 0:03:00.9]} 1... b6 {[%clk 0:03:00]} 2. e4 {[%clk 0:02:56.4]} 2...
Bb7 {[%clk 0:03:00.9]} 3. Bd3 {[%clk 0:02:56.2]} 3... e6 {[%clk 0:03:00.8]} 4.
Qe2 {[%clk 0:02:55.9]} 4... Nf6 {[%clk 0:03:01.3]} 5. Nf3 {[%clk 0:02:55.1]}
5... d5 {[%clk 0:03:01.6]} 6. e5 {[%clk 0:02:55.2]} 6... Nfd7 {[%clk 0:03:02.1]}
7. O-O {[%clk 0:02:53.3]} 7... Be7 {[%clk 0:03:02.7]} 8. Nbd2 {[%clk 0:02:48.5]}
8... c5 {[%clk 0:03:03]} 9. c3 {[%clk 0:02:48.8]} 9... Nc6 {[%clk 0:03:03.6]}
10. a3 {[%clk 0:02:47.5]} 10... a6 {[%clk 0:03:02.9]} 11. b4 {[%clk 0:02:45.6]}
11... g5 {[%clk 0:02:58.4]} 12. Rb1 {[%clk 0:02:36.4]} 12... g4 {[%clk
0:02:54.2]} 13. Ne1 {[%clk 0:02:36.2]} 13... cxd4 {[%clk 0:02:54.7]} 14. cxd4
{[%clk 0:02:30.4]} 14... Nxd4 {[%clk 0:02:54]} 15. Qxg4 {[%clk 0:02:28.7]} 15...
Nc6 {[%clk 0:02:54.2]} 16. Qg7 {[%clk 0:02:17.7]} 16... Rf8 {[%clk 0:02:54.4]}
17. Nef3 {[%clk 0:02:05.3]} 17... Qc7 {[%clk 0:02:54.1]} 18. Bb2 {[%clk
0:01:53.1]} 18... O-O-O {[%clk 0:02:47.8]} 19. b5 {[%clk 0:01:41.4]} 19... axb5
{[%clk 0:02:43]} 20. Bxb5 {[%clk 0:01:40.6]} 20... Nc5 {[%clk 0:02:43]} 21. Bxc6
{[%clk 0:01:33.9]} 21... Bxc6 {[%clk 0:02:38.5]} 22. Nd4 {[%clk 0:01:34.4]}
22... Bb7 {[%clk 0:02:20.9]} 23. N2f3 {[%clk 0:01:14.1]} 23... Qd7 {[%clk
0:02:15.5]} 24. Bc1 {[%clk 0:00:58.4]} 24... f5 {[%clk 0:01:58.7]} 25. exf6
{[%clk 0:00:46]} 25... Bxf6 {[%clk 0:01:52.9]} 26. Qxd7+ {[%clk 0:00:45.7]}
26... Kxd7 {[%clk 0:01:50.1]} 27. Rxb6 {[%clk 0:00:42.3]} 27... e5 {[%clk
0:01:28.4]} 28. Ne6 {[%clk 0:00:40.7]} 28... Nxe6 {[%clk 0:01:16.6]} 29. Rxb7+
{[%clk 0:00:40.9]} 29... Kc6 {[%clk 0:01:11.9]} 30. Rxh7 {[%clk 0:00:30.8]}
30... e4 {[%clk 0:01:12.3]} 31. Nd2 {[%clk 0:00:30.5]} 31... Rh8 {[%clk
0:01:09.5]} 32. Rxh8 {[%clk 0:00:30.5]} 32... Rxh8 {[%clk 0:01:10.4]} 33. Nb3
{[%clk 0:00:28.2]} 33... d4 {[%clk 0:01:06.8]} 34. Re1 {[%clk 0:00:28]} 34...
Kd5 {[%clk 0:01:05.2]} 35. Nd2 {[%clk 0:00:28.4]} 35... Nc5 {[%clk 0:00:56.2]}
36. a4 {[%clk 0:00:28.8]} 36... Nd3 {[%clk 0:00:41.7]} 37. Rd1 {[%clk
0:00:29.1]} 37... Nxc1 {[%clk 0:00:26.4]} 38. Rxc1 {[%clk 0:00:28.9]} 38... Bg5
{[%clk 0:00:24]} 39. Rd1 {[%clk 0:00:23.1]} 39... d3 {[%clk 0:00:20.8]} 40. Nf1
{[%clk 0:00:20.6]} 40... Kd4 {[%clk 0:00:20.6]} 41. g3 {[%clk 0:00:20.6]} 41...
Kc3 {[%clk 0:00:19.2]} 42. f4 {[%clk 0:00:20.4]} 42... exf3 {[%clk 0:00:17.2]}
43. Kf2 {[%clk 0:00:20.5]} 43... Kc2 {[%clk 0:00:17.5]} 44. Ra1 {[%clk
0:00:20.4]} 44... Rf8 {[%clk 0:00:15.4]} 45. h4 {[%clk 0:00:19.7]} 45... Bc1
{[%clk 0:00:14]} 46. a5 {[%clk 0:00:18.4]} 46... Bb2 {[%clk 0:00:14.4]} 47. Ne3+
{[%clk 0:00:17.9]} 47... Kb3 {[%clk 0:00:13.6]} 48. Rd1 {[%clk 0:00:17.9]} 48...
Kc3 {[%clk 0:00:11.2]} 49. a6 {[%clk 0:00:17.5]} 49... Ba3 {[%clk 0:00:10]} 50.
g4 {[%clk 0:00:16.2]} 50... d2 {[%clk 0:00:10.2]} 51. a7 {[%clk 0:00:15.6]}
51... Bc5 {[%clk 0:00:10.3]} 52. a8=Q {[%clk 0:00:16]} 52... Rxa8 {[%clk
0:00:09.7]} 53. Kxf3 {[%clk 0:00:16.2]} 53... Rf8+ {[%clk 0:00:07.9]} 54. Nf5
{[%clk 0:00:16]} 54... Kc2 {[%clk 0:00:06.1]} 55. Rh1 {[%clk 0:00:14.1]} 55...
d1=Q+ {[%clk 0:00:06.1]} 56. Rxd1 {[%clk 0:00:14.5]} 56... Kxd1 {[%clk 0:00:07]}
57. Ke4 {[%clk 0:00:14.8]} 57... Ke2 {[%clk 0:00:06.9]} 58. g5 {[%clk 0:00:15]}
58... Kf2 {[%clk 0:00:04.1]} 59. Kf4 {[%clk 0:00:14.9]} 59... Be3+ {[%clk
0:00:03.7]} 60. Kg4 {[%clk 0:00:15.1]} 60... Bd2 {[%clk 0:00:02.8]} 61. g6
{[%clk 0:00:15.1]} 61... Rf6 {[%clk 0:00:02.4]} 62. h5 {[%clk 0:00:14.3]} 62...
Bb4 {[%clk 0:00:01.5]} 63. g7 {[%clk 0:00:14.5]} 1-0

[Event "*** Titled Tuesday Blitz"]
[Site "Chess.com"]
[Date "2020.05.26"]
[Round "3"]
[White "Oleksandr_Bortnyk"]
[Black "lucliasco"]
[Result "1/2-1/2"]
[WhiteElo "2978"]
[BlackElo "2692"]
[TimeControl "180+1"]
[EndTime "10:28:39 PDT"]
[Termination "Game drawn by agreement"]

1. d4 {[%clk 0:03:00.9]} 1... d5 {[%clk 0:02:54.1]} 2. Nc3 {[%clk 0:03:00.8]}
2... Bf5 {[%clk 0:02:50.9]} 3. Bf4 {[%clk 0:03:00.1]} 3... e6 {[%clk 0:02:49.2]}
4. e3 {[%clk 0:03:00.4]} 4... Bd6 {[%clk 0:02:48.8]} 5. Nf3 {[%clk 0:03:01]}
5... Ne7 {[%clk 0:02:48.3]} 6. Be2 {[%clk 0:02:51.1]} 6... O-O {[%clk
0:02:47.4]} 7. Ne5 {[%clk 0:02:29.9]} 7... Nd7 {[%clk 0:02:30.7]} 8. g4 {[%clk
0:02:24.1]} 8... Bg6 {[%clk 0:02:27.2]} 9. h4 {[%clk 0:02:24.2]} 9... h6 {[%clk
0:02:25]} 10. g5 {[%clk 0:02:16.2]} 10... hxg5 {[%clk 0:02:22.1]} 11. hxg5
{[%clk 0:01:41.4]} 11... Bxe5 {[%clk 0:02:14.8]} 12. dxe5 {[%clk 0:00:51.6]}
12... c5 {[%clk 0:02:15.7]} 13. Bd3 {[%clk 0:00:46.6]} 13... c4 {[%clk
0:02:07.5]} 14. Bxg6 {[%clk 0:00:46.4]} 14... Nxg6 {[%clk 0:02:08.4]} 15. Qh5
{[%clk 0:00:45.4]} 15... Re8 {[%clk 0:02:09.3]} 16. O-O-O {[%clk 0:00:42.5]}
16... Kf8 {[%clk 0:02:06.4]} 17. Nxd5 {[%clk 0:00:39]} 17... exd5 {[%clk
0:02:04.3]} 18. Rxd5 {[%clk 0:00:39.9]} 18... Qc8 {[%clk 0:01:54.2]} 19. e6
{[%clk 0:00:35.6]} 19... Rxe6 {[%clk 0:01:51.7]} 20. Bd6+ {[%clk 0:00:35.5]}
20... Ke8 {[%clk 0:01:52.1]} 21. Ba3 {[%clk 0:00:17.1]} 21... Qc6 {[%clk
0:01:47.3]} 22. Rd4 {[%clk 0:00:14.1]} 22... Rc8 {[%clk 0:01:40.4]} 23. Qh7
{[%clk 0:00:12]} 23... Ndf8 {[%clk 0:01:36.4]} 24. Qh3 {[%clk 0:00:08.6]} 24...
b5 {[%clk 0:01:32.5]} 25. Rhd1 {[%clk 0:00:07.9]} 25... a5 {[%clk 0:01:30.3]}
26. Bd6 {[%clk 0:00:08.2]} 26... b4 {[%clk 0:01:30.5]} 27. Qf5 {[%clk
0:00:08.3]} 27... Ne7 {[%clk 0:01:26.4]} 28. Qxa5 {[%clk 0:00:06.8]} 28... b3
{[%clk 0:01:26.2]} 29. axb3 {[%clk 0:00:05.5]} 29... cxb3 {[%clk 0:01:24.3]} 30.
c3 {[%clk 0:00:05.9]} 30... Nd7 {[%clk 0:01:20.9]} 31. Bb4 {[%clk 0:00:04.4]}
31... Re5 {[%clk 0:01:21.3]} 32. Rxd7 {[%clk 0:00:01.8]} 32... Rxa5 {[%clk
0:01:15.8]} 33. Rxe7+ {[%clk 0:00:02.1]} 33... Kf8 {[%clk 0:01:16.5]} 34. Rc7+
{[%clk 0:00:03]} 34... Kg8 {[%clk 0:01:12.6]} 35. Rxc6 {[%clk 0:00:02.8]} 35...
Ra1+ {[%clk 0:01:10.9]} 36. Kd2 {[%clk 0:00:03.4]} 36... Rxd1+ {[%clk
0:01:11.6]} 37. Kxd1 {[%clk 0:00:04.3]} 37... Rxc6 {[%clk 0:01:12.5]} 38. Kd2
{[%clk 0:00:04.7]} 38... f6 {[%clk 0:01:06]} 39. gxf6 {[%clk 0:00:04]} 39...
Rxf6 {[%clk 0:01:06.9]} 40. f4 {[%clk 0:00:04.6]} 40... g5 {[%clk 0:01:04.7]}
41. fxg5 {[%clk 0:00:02.1]} 41... Rf2+ {[%clk 0:01:02.2]} 42. Kd3 {[%clk
0:00:03]} 42... Rxb2 {[%clk 0:01:02.4]} 43. Kc4 {[%clk 0:00:03.7]} 43... Rb1
{[%clk 0:00:59.2]} 44. Ba3 {[%clk 0:00:04.1]} 44... Kf7 {[%clk 0:00:56.5]} 45.
e4 {[%clk 0:00:03.9]} 45... Ke6 {[%clk 0:00:55]} 46. Bc5 {[%clk 0:00:03.1]}
46... b2 {[%clk 0:00:50]} 47. Kb3 {[%clk 0:00:02.9]} 47... Rg1 {[%clk 0:00:50]}
48. Kxb2 {[%clk 0:00:02]} 48... Rxg5 {[%clk 0:00:47.7]} 49. Bd4 {[%clk
0:00:02.6]} 49... Rg4 {[%clk 0:00:48.1]} 50. e5 {[%clk 0:00:03.1]} 50... Kd5
{[%clk 0:00:48.7]} 51. Kb3 {[%clk 0:00:03.7]} 51... Rg8 {[%clk 0:00:47.6]} 52.
Kc2 {[%clk 0:00:02.2]} 52... Kc4 {[%clk 0:00:46.5]} 53. Kd2 {[%clk 0:00:02.7]}
53... Rg3 {[%clk 0:00:44.6]} 54. Ke2 {[%clk 0:00:03.1]} 54... Kd5 {[%clk
0:00:44.7]} 55. Kf2 {[%clk 0:00:03.4]} 55... Rg6 {[%clk 0:00:45.1]} 56. Kf3
{[%clk 0:00:03.6]} 56... Re6 {[%clk 0:00:41.1]} 57. Kf4 {[%clk 0:00:04.5]} 57...
Re8 {[%clk 0:00:40.8]} 58. Kf5 {[%clk 0:00:05]} 58... Rf8+ {[%clk 0:00:41.2]}
59. Kg6 {[%clk 0:00:05.6]} 59... Ke6 {[%clk 0:00:39.6]} 60. Kg5 {[%clk
0:00:06.1]} 60... Rf1 {[%clk 0:00:39.4]} 61. Kg4 {[%clk 0:00:06.4]} 61... Rf7
{[%clk 0:00:39.9]} 62. Kg3 {[%clk 0:00:06.4]} 62... Rf1 {[%clk 0:00:40.1]} 63.
Kg4 {[%clk 0:00:06.8]} 63... Rf7 {[%clk 0:00:40.4]} 64. Kg5 {[%clk 0:00:07.1]}
64... Rf1 {[%clk 0:00:40.7]} 65. Kg6 {[%clk 0:00:07.5]} 65... Rf5 {[%clk
0:00:41]} 66. Kg7 {[%clk 0:00:04.3]} 66... Rf1 {[%clk 0:00:41.1]} 67. Kg6 {[%clk
0:00:04.7]} 67... Rf8 {[%clk 0:00:40.8]} 68. Kg5 {[%clk 0:00:05]} 68... Rf5+
{[%clk 0:00:40.9]} 69. Kg4 {[%clk 0:00:05.4]} 69... Rf1 {[%clk 0:00:40.1]} 70.
Kg3 {[%clk 0:00:04.3]} 1/2-1/2

[Event "*** Titled Tuesday Blitz"]
[Site "Chess.com"]
[Date "2020.05.26"]
[Round "3"]
[White "antoszu"]
[Black "Saloni1299"]
[Result "0-1"]
[WhiteElo "2495"]
[BlackElo "2305"]
[TimeControl "180+1"]
[EndTime "10:28:45 PDT"]
[Termination "Saloni1299 won by resignation"]

1. d4 {[%clk 0:03:00.9]} 1... Nf6 {[%clk 0:02:58.6]} 2. c4 {[%clk 0:03:00.2]}
2... g6 {[%clk 0:02:58.3]} 3. Nc3 {[%clk 0:03:00]} 3... d5 {[%clk 0:02:58.5]} 4.
cxd5 {[%clk 0:02:59.9]} 4... Nxd5 {[%clk 0:02:58.7]} 5. e4 {[%clk 0:03:00.5]}
5... Nxc3 {[%clk 0:02:57]} 6. bxc3 {[%clk 0:03:01.4]} 6... Bg7 {[%clk
0:02:57.6]} 7. Nf3 {[%clk 0:03:01.7]} 7... c5 {[%clk 0:02:58]} 8. Be3 {[%clk
0:03:01.8]} 8... O-O {[%clk 0:02:57.3]} 9. Be2 {[%clk 0:02:55.2]} 9... Qa5
{[%clk 0:02:50.9]} 10. O-O {[%clk 0:02:53.5]} 10... Nc6 {[%clk 0:02:43.2]} 11.
d5 {[%clk 0:02:41.5]} 11... Ne5 {[%clk 0:02:41.1]} 12. Nxe5 {[%clk 0:02:41.5]}
12... Bxe5 {[%clk 0:02:40.9]} 13. Rc1 {[%clk 0:02:42]} 13... Bxc3 {[%clk
0:02:35.5]} 14. Qd3 {[%clk 0:02:39.9]} 14... Bg7 {[%clk 0:02:30.9]} 15. Bxc5
{[%clk 0:02:30]} 15... Re8 {[%clk 0:02:28]} 16. Qb5 {[%clk 0:02:16.1]} 16... Qd8
{[%clk 0:02:23.4]} 17. Qb3 {[%clk 0:02:09.6]} 17... b6 {[%clk 0:02:22]} 18. Ba3
{[%clk 0:02:06.2]} 18... Bd7 {[%clk 0:02:07.6]} 19. Ba6 {[%clk 0:01:53.7]} 19...
e6 {[%clk 0:02:06.5]} 20. Bd6 {[%clk 0:01:41.7]} 20... exd5 {[%clk 0:02:03.5]}
21. Bb7 {[%clk 0:01:33.8]} 21... dxe4 {[%clk 0:02:03.2]} 22. Bxa8 {[%clk
0:01:34]} 22... Qxa8 {[%clk 0:02:03.1]} 23. Ba3 {[%clk 0:01:25.2]} 23... Be6
{[%clk 0:01:58.2]} 24. Qa4 {[%clk 0:01:16.5]} 24... a6 {[%clk 0:01:43.6]} 25.
Rfd1 {[%clk 0:01:07.6]} 25... b5 {[%clk 0:01:43.4]} 26. Qa5 {[%clk 0:01:02.6]}
26... Bc4 {[%clk 0:01:41.3]} 27. Rd7 {[%clk 0:00:56.4]} 27... Bh6 {[%clk
0:01:34.7]} 28. Rcd1 {[%clk 0:00:55.8]} 28... Bd3 {[%clk 0:01:21.5]} 29. Bb2
{[%clk 0:00:50]} 29... Qc6 {[%clk 0:01:18]} 30. Rc7 {[%clk 0:00:48]} 30... Qe6
{[%clk 0:01:12]} 31. Qc3 {[%clk 0:00:47.4]} 31... f6 {[%clk 0:00:48.1]} 32. Rc6
{[%clk 0:00:47.5]} 32... Qg4 {[%clk 0:00:38.2]} 33. Re1 {[%clk 0:00:33.5]} 33...
Bg5 {[%clk 0:00:23.3]} 34. Qd4 {[%clk 0:00:25.9]} 34... Qf5 {[%clk 0:00:13.6]}
35. Rc7 {[%clk 0:00:20.7]} 35... e3 {[%clk 0:00:12.2]} 36. f3 {[%clk 0:00:20.8]}
36... e2 {[%clk 0:00:09.8]} 37. Bc1 {[%clk 0:00:20.6]} 37... Bxc1 {[%clk
0:00:09.1]} 38. Rcxc1 {[%clk 0:00:21.5]} 38... Qe5 {[%clk 0:00:07.3]} 39. Qxe5
{[%clk 0:00:18.7]} 39... Rxe5 {[%clk 0:00:08.2]} 40. Rc6 {[%clk 0:00:18.9]}
40... b4 {[%clk 0:00:07.3]} 41. Rxf6 {[%clk 0:00:18.6]} 41... Bc4 {[%clk
0:00:07.5]} 42. Rb6 {[%clk 0:00:17.8]} 42... a5 {[%clk 0:00:07.9]} 43. Kf2
{[%clk 0:00:18.4]} 43... h5 {[%clk 0:00:07.1]} 44. f4 {[%clk 0:00:18.2]} 44...
Re4 {[%clk 0:00:06.4]} 45. g3 {[%clk 0:00:18.7]} 45... Bxa2 {[%clk 0:00:05.6]}
46. Rxe2 {[%clk 0:00:18.5]} 46... Rxe2+ {[%clk 0:00:05.5]} 47. Kxe2 {[%clk
0:00:19.4]} 47... b3 {[%clk 0:00:06.1]} 48. Kd2 {[%clk 0:00:19.5]} 48... a4
{[%clk 0:00:06.5]} 49. Kc3 {[%clk 0:00:19.8]} 49... a3 {[%clk 0:00:06.4]} 50.
Rxb3 {[%clk 0:00:19.2]} 50... Bxb3 {[%clk 0:00:06.7]} 51. Kxb3 {[%clk
0:00:20.1]} 51... Kf7 {[%clk 0:00:07.3]} 52. Kxa3 {[%clk 0:00:20.6]} 52... Kf6
{[%clk 0:00:08]} 53. Kb3 {[%clk 0:00:20.4]} 53... Kf5 {[%clk 0:00:08.6]} 54. h3
{[%clk 0:00:20.8]} 54... h4 {[%clk 0:00:08.3]} 55. gxh4 {[%clk 0:00:20.5]} 55...
Kxf4 {[%clk 0:00:08.7]} 56. Kc3 {[%clk 0:00:21.4]} 56... Kg3 {[%clk 0:00:08.8]}
57. Kd3 {[%clk 0:00:22.1]} 57... Kxh4 {[%clk 0:00:08.7]} 58. Ke3 {[%clk
0:00:22.7]} 58... Kxh3 {[%clk 0:00:09.2]} 59. Kf4 {[%clk 0:00:23.1]} 59... Kh4
{[%clk 0:00:08.1]} 60. Kf3 {[%clk 0:00:23.5]} 60... g5 {[%clk 0:00:08]} 61. Kf2
{[%clk 0:00:23.3]} 61... Kh3 {[%clk 0:00:08.3]} 62. Kf3 {[%clk 0:00:23.5]} 62...
g4+ {[%clk 0:00:08.2]} 63. Kf2 {[%clk 0:00:24.1]} 63... Kh2 {[%clk 0:00:08]} 0-1

[Event "*** Titled Tuesday Blitz"]
[Site "Chess.com"]
[Date "2020.05.26"]
[Round "3"]
[White "iLuusions"]
[Black "WastefulJustice"]
[Result "1-0"]
[WhiteElo "2589"]
[BlackElo "2382"]
[TimeControl "180+1"]
[EndTime "10:28:46 PDT"]
[Termination "iLuusions won on time"]

1. d4 {[%clk 0:03:00.9]} 1... Nf6 {[%clk 0:02:59.7]} 2. c4 {[%clk 0:03:01.1]}
2... g6 {[%clk 0:03:00.4]} 3. Nc3 {[%clk 0:02:57.6]} 3... Bg7 {[%clk 0:03:00.9]}
4. e4 {[%clk 0:02:57.6]} 4... d6 {[%clk 0:03:01.6]} 5. h3 {[%clk 0:02:56.8]}
5... O-O {[%clk 0:03:01.9]} 6. Bg5 {[%clk 0:02:52.7]} 6... Nbd7 {[%clk 0:02:59]}
7. Bd3 {[%clk 0:02:48.7]} 7... e5 {[%clk 0:02:58.5]} 8. d5 {[%clk 0:02:44.7]}
8... Nc5 {[%clk 0:02:58.6]} 9. Bc2 {[%clk 0:02:44.3]} 9... a5 {[%clk 0:02:58.8]}
10. Nge2 {[%clk 0:02:41.2]} 10... h6 {[%clk 0:02:58.7]} 11. Be3 {[%clk
0:02:40.9]} 11... Bd7 {[%clk 0:02:55.4]} 12. Qd2 {[%clk 0:02:40.5]} 12... Kh7
{[%clk 0:02:55.3]} 13. g4 {[%clk 0:02:40.8]} 13... Ne8 {[%clk 0:02:52.1]} 14.
Ng3 {[%clk 0:02:37]} 14... c6 {[%clk 0:02:45.1]} 15. O-O-O {[%clk 0:02:11.7]}
15... cxd5 {[%clk 0:02:44.6]} 16. Qxd5 {[%clk 0:02:01.8]} 16... Be6 {[%clk
0:02:41.1]} 17. Qd2 {[%clk 0:02:00.4]} 17... Bxc4 {[%clk 0:02:41.2]} 18. Bxc5
{[%clk 0:01:59.2]} 18... b5 {[%clk 0:02:31.5]} 19. Bxd6 {[%clk 0:01:56.4]} 19...
Nxd6 {[%clk 0:02:27.6]} 20. Qxd6 {[%clk 0:01:57.3]} 20... Qg5+ {[%clk
0:02:27.7]} 21. Qd2 {[%clk 0:01:51.7]} 21... Qe7 {[%clk 0:02:24.3]} 22. Nd5
{[%clk 0:01:48]} 22... Qc5 {[%clk 0:02:23]} 23. Kb1 {[%clk 0:01:39.2]} 23...
Rfc8 {[%clk 0:02:16.7]} 24. Rc1 {[%clk 0:01:35.3]} 24... a4 {[%clk 0:02:14.9]}
25. a3 {[%clk 0:01:05.8]} 25... Bf8 {[%clk 0:02:11.2]} 26. Rhd1 {[%clk 0:01:02]}
26... Kg7 {[%clk 0:01:59.9]} 27. Bd3 {[%clk 0:00:53.1]} 27... Rab8 {[%clk
0:01:54.9]} 28. Ka1 {[%clk 0:00:43.7]} 28... Qa7 {[%clk 0:01:29.7]} 29. Bxc4
{[%clk 0:00:28.8]} 29... bxc4 {[%clk 0:01:27.9]} 30. Ne3 {[%clk 0:00:29.2]}
30... Bc5 {[%clk 0:00:42.6]} 31. Ne2 {[%clk 0:00:20.5]} 31... Rb3 {[%clk
0:00:32]} 32. Nxc4 {[%clk 0:00:18]} 32... Rcb8 {[%clk 0:00:28.5]} 33. Rc2 {[%clk
0:00:15.9]} 33... Qe7 {[%clk 0:00:24.8]} 34. Ka2 {[%clk 0:00:10.1]} 34... Qb7
{[%clk 0:00:19.2]} 35. Qd7 {[%clk 0:00:06.9]} 35... Rxa3+ {[%clk 0:00:16.1]} 36.
Nxa3 {[%clk 0:00:05.2]} 36... Qb3+ {[%clk 0:00:16]} 37. Kb1 {[%clk 0:00:04.7]}
37... Bxa3 {[%clk 0:00:16.4]} 38. Qd3 {[%clk 0:00:03.8]} 38... Qb4 {[%clk
0:00:11.9]} 39. Ka2 {[%clk 0:00:03.3]} 39... Bxb2 {[%clk 0:00:11.2]} 40. Rb1
{[%clk 0:00:01.7]} 40... a3 {[%clk 0:00:11.6]} 41. Nc1 {[%clk 0:00:02.1]} 41...
Qb6 {[%clk 0:00:08.3]} 42. Nb3 {[%clk 0:00:02.5]} 42... Qe6 {[%clk 0:00:08.4]}
43. Qc4 {[%clk 0:00:02.4]} 43... Qb6 {[%clk 0:00:06.8]} 44. Nc5 {[%clk
0:00:02.6]} 44... Rc8 {[%clk 0:00:06]} 45. Qd5 {[%clk 0:00:02.4]} 45... Qb5
{[%clk 0:00:05.5]} 46. Qb3 {[%clk 0:00:02.6]} 46... Qc6 {[%clk 0:00:04.7]} 47.
Rc4 {[%clk 0:00:01.2]} 47... Kh7 {[%clk 0:00:04.5]} 48. Rc2 {[%clk 0:00:02]}
48... Qd6 {[%clk 0:00:04.5]} 49. Rc4 {[%clk 0:00:02.9]} 49... Rxc5 {[%clk
0:00:04.4]} 50. Qb4 {[%clk 0:00:03.6]} 50... Qe6 {[%clk 0:00:03.7]} 51. Qxc5
{[%clk 0:00:04]} 51... f6 {[%clk 0:00:02.9]} 52. Qd5 {[%clk 0:00:04.5]} 52...
Qb6 {[%clk 0:00:02.4]} 53. Rd1 {[%clk 0:00:04.9]} 1-0